[Event "EYTCC Open U18 2022"]
[Site "Thessaloniki"]
[Date "2022.07.14"]
[Round "3.14"]
[White "Gregoric, Andraz"]
[Black "Koellner, Ruben Gideon"]
[Result "1-0"]
[ECO "C60"]
[WhiteElo "2199"]
[BlackElo "2422"]
[Annotator "ChessBase"]
[PlyCount "104"]
[EventDate "2022.07.12"]
[EventType "team-tourn"]
[EventCountry "GRE"]
[SourceTitle "playchess.com"]
[Source "ChessBase"]
[SourceQuality "1"]
[WhiteTeam "Slovenia"]
[BlackTeam "Germany"]
[WhiteTeamCountry "SLO"]
[BlackTeamCountry "GER"]
[TimeControl "40/5400+30:1800+30"]

1. e4 {[%emt 0:00:01]} e5 {[%emt 0:00:12]} 2. Nf3 {[%emt 0:00:08]} Nc6 {[%emt 0:00:04]} 3. Bb5 {[%emt 0:00:16]} g6 {[%emt 0:00:17]} 4. c3 {[%emt 0:01:07]} Bg7 {[%emt 0:00:33]} 5. O-O {[%emt 0:02:35]} Nge7 {[%emt 0:00:35]} 6. d4 {[%emt 0:02:01]} exd4 {[%emt 0:00:30]} 7. cxd4 {[%emt 0:00:08]} a6 {[%emt 0:00:04]} 8. Ba4 {[%emt 0:00:55]} b5 {[%emt 0:00:07]} 9. Bb3 {[%emt 0:02:37]} O-O {[%emt 0:00:45]} 10. h3 {[%emt 0:06:55]} d6 {[%emt 0:04:04]} 11. Nc3 {[%emt 0:09:47]} Na5 {[%emt 0:00:50]} 12. Bc2 {[%emt 0:00:12]} c5 {[%emt 0:02:41]} 13. dxc5 {[%emt 0:02:22]} dxc5 {[%emt 0:00:09]} 14. Qxd8 {[%emt 0:00:03]} Rxd8 {[%emt 0:00:06]} 15. Be3 {[%emt 0:00:14]} Nb7 {[%emt 0:14:04]} 16. Rfd1 {[%emt 0:15:28]} Be6 {[%emt 0:01:48]} 17. e5 {[%emt 0:14:18]} Rxd1+ {[%emt 0:22:02]} 18. Rxd1 {[%emt 0:01:19]} Rc8 {[%emt 0:01:39]} 19. Ng5 {[%emt 0:11:16]} Rc7 {[%emt 0:25:21]} 20. Nxe6 {[%emt 0:01:45]} fxe6 {[%emt 0:00:01]} 21. f4 {[%emt 0:00:46]} b4 {[%emt 0:00:06]} 22. Ne4 {[%emt 0:01:56]} Nd5 {[%emt 0:00:08]} 23. Bc1 {[%emt 0:06:22]} Bh6 {[%emt 0:01:46]} 24. g3 {[%emt 0:03:19]} c4 {[%emt 0:05:45]} 25. Kf2 {[%emt 0:02:45]} Nc5 {[%emt 0:02:27]} 26. Be3 {[%emt 0:04:01]} Bf8 {[%emt 0:04:00]} 27. Kf3 a5 28. Bxc5 {[%emt 0:04:35]} Bxc5 {[%emt 0:00:35]} 29. Ng5 Rc8 {[%emt 0:06:57]} 30. Nxe6 {[%emt 0:02:14]} Ne3 31. Rc1 {[%emt 0:00:22]} Bb6 {[%emt 0:00:52]} 32. Ba4 {[%emt 0:02:44]} h6 {[%emt 0:02:25]} 33. Bd7 {[%emt 0:01:41]} Rb8 {[%emt 0:00:07]} 34. Nc7 {[%emt 0:01:17]} Bd4 {[%emt 0:02:26]} 35. b3 {[%emt 0:01:12]} c3 {[%emt 0:00:28]} 36. Be6+ {[%emt 0:00:03]} Kf8 {[%emt 0:00:48]} 37. Nd5 {[%emt 0:00:07]} Nxd5 {[%emt 0:01:39]} 38. Bxd5 {[%emt 0:00:02]} Rd8 {[%emt 0:00:11]} 39. Be4 {[%emt 0:01:45]} g5 {[%emt 0:00:34]} 40. Rd1 {[%emt 0:00:00]} Ke7 {[%emt 0:00:00]} 41. Bc2 {[%emt 0:02:46]} h5 {[%emt 0:02:16]} 42. Ke4 {[%emt 0:02:06]} Bf2 {[%emt 0:00:46]} 43. Rxd8 {[%emt 0:00:22]} Kxd8 {[%emt 0:00:05]} 44. Kf3 {[%emt 0:13:49]} Bd4 {[%emt 0:00:06]} 45. Ke4 {[%emt 0:00:01]} Bf2 {[%emt 0:00:09]} 46. f5 {[%emt 0:03:16]} Ke7 {[%emt 0:18:00]} 47. g4 {[%emt 0:01:15]} hxg4 {[%emt 0:00:03]} 48. hxg4 {[%emt 0:00:01]} Bg3 {[%emt 0:02:36]} 49. Bd3 {[%emt 0:00:50]} Bf4 {[%emt 0:01:17]} 50. f6+ {[%emt 0:01:45]} Ke6 {[%emt 0:00:05]} 51. Bc4+ {[%emt 0:00:03]} Kd7 {[%emt 0:00:04]} 52. e6+ {[%emt 0:00:02]} Kd6 {[%emt 0:00:34]} 1-0

[Event "EYTCC Open U18 2022"]
[Site "Thessaloniki"]
[Date "2022.07.14"]
[Round "3.15"]
[White "Koelle, Tobias"]
[Black "Skrbec, Leon"]
[Result "1-0"]
[ECO "D37"]
[WhiteElo "2436"]
[BlackElo "2103"]
[Annotator "ChessBase"]
[PlyCount "67"]
[EventDate "2022.07.12"]
[EventType "team-tourn"]
[EventCountry "GRE"]
[SourceTitle "playchess.com"]
[Source "ChessBase"]
[SourceQuality "1"]
[WhiteTeam "Germany"]
[BlackTeam "Slovenia"]
[WhiteTeamCountry "GER"]
[BlackTeamCountry "SLO"]
[TimeControl "40/5400+30:1800+30"]

1. d4 {[%emt 0:00:10]} Nf6 {[%emt 0:00:09]} 2. c4 {[%emt 0:00:09]} e6 {[%emt 0:00:04]} 3. Nf3 {[%emt 0:00:05]} d5 {[%emt 0:00:21]} 4. Nc3 {[%emt 0:00:08]} Be7 {[%emt 0:00:27]} 5. Bf4 {[%emt 0:00:10]} c6 {[%emt 0:00:34]} 6. e3 {[%emt 0:00:19]} O-O {[%emt 0:00:14]} 7. Qc2 {[%emt 0:00:16]} Nbd7 {[%emt 0:01:23]} 8. Rd1 {[%emt 0:00:40]} Nh5 {[%emt 0:02:11]} 9. Bg3 {[%emt 0:04:02]} Nxg3 {[%emt 0:13:23]} 10. hxg3 {[%emt 0:00:04]} g6 {[%emt 0:01:05]} 11. Be2 {[%emt 0:03:12]} Nf6 {[%emt 0:03:15]} 12. Ne5 {[%emt 0:08:58]} Bd6 {[%emt 0:17:16]} 13. g4 {[%emt 0:07:22]} Bxe5 14. dxe5 {[%emt 0:00:42]} Nd7 {[%emt 0:04:48]} 15. f4 {[%emt 0:20:25]} Qb6 {[%emt 0:10:34]} 16. Rh3 {[%emt 0:02:19]} f6 {[%emt 0:01:33]} 17. Bd3 {[%emt 0:17:00]} Kg7 {[%emt 0:01:59]} 18. Qf2 {[%emt 0:05:31]} Rf7 {[%emt 0:04:17]} 19. exf6+ {[%emt 0:06:24]} Nxf6 {[%emt 0:00:48]} 20. g5 {[%emt 0:00:31]} Ng8 {[%emt 0:01:44]} 21. g4 {[%emt 0:03:01]} e5 {[%emt 0:08:44]} 22. f5 {[%emt 0:03:03]} e4 {[%emt 0:00:16]} 23. Qh2 {[%emt 0:04:02]} Bxf5 {[%emt 0:14:08]} 24. gxf5 {[%emt 0:01:44]} exd3 {[%emt 0:00:31]} 25. Rxh7+ {[%emt 0:00:09]} Kf8 {[%emt 0:00:04]} 26. Rxf7+ {[%emt 0:03:32]} Kxf7 {[%emt 0:00:06]} 27. Rxd3 {[%emt 0:00:23]} Re8 {[%emt 0:03:23]} 28. Qh7+ {[%emt 0:01:51]} Kf8 {[%emt 0:00:09]} 29. f6 {[%emt 0:00:10]} Rxe3+ {[%emt 0:00:47]} 30. Kf1 {[%emt 0:04:20]} Re7 {[%emt 0:05:08]} 31. fxe7+ {[%emt 0:00:10]} Nxe7 {[%emt 0:00:04]} 32. Rf3+ {[%emt 0:00:29]} Ke8 {[%emt 0:00:15]} 33. Qf7+ {[%emt 0:00:08]} Kd7 {[%emt 0:00:14]} 34. cxd5 {[%emt 0:00:47]} 1-0

[Event "EYTCC Open U18 2022"]
[Site "Thessaloniki"]
[Date "2022.07.14"]
[Round "3.16"]
[White "Kozlovic, Jernej"]
[Black "Krastev, Alexander"]
[Result "0-1"]
[ECO "B30"]
[WhiteElo "2088"]
[BlackElo "2435"]
[Annotator "ChessBase"]
[PlyCount "41"]
[EventDate "2022.07.12"]
[EventType "team-tourn"]
[EventCountry "GRE"]
[SourceTitle "playchess.com"]
[Source "ChessBase"]
[SourceQuality "1"]
[WhiteTeam "Slovenia"]
[BlackTeam "Germany"]
[WhiteTeamCountry "SLO"]
[BlackTeamCountry "GER"]
[TimeControl "40/5400+30:1800+30"]

1. e4 {[%emt 0:00:07]} c5 {[%emt 0:01:17]} 2. Nf3 {[%emt 0:00:11]} Nc6 {[%emt 0:00:05]} 3. c3 {[%emt 0:00:20]} d5 {[%emt 0:00:24]} 4. exd5 {[%emt 0:00:42]} Qxd5 {[%emt 0:00:05]} 5. d4 {[%emt 0:00:47]} Bf5 {[%emt 0:00:06]} 6. Be3 {[%emt 0:04:28]} cxd4 {[%emt 0:05:20]} 7. cxd4 {[%emt 0:01:03]} Bxb1 {[%emt 0:00:19]} 8. Qxb1 {[%emt 0:08:27]} e6 {[%emt 0:07:28]} 9. Bd3 {[%emt 0:07:26]} Bb4+ {[%emt 0:01:06]} 10. Ke2 {[%emt 0:01:10]} Nf6 {[%emt 0:01:07]} 11. Rd1 {[%emt 0:03:43]} Be7 {[%emt 0:03:13]} 12. Qc2 {[%emt 0:04:54]} O-O {[%emt 0:01:07]} 13. Qc4 {[%emt 0:02:25]} Qd6 {[%emt 0:23:41]} 14. Rac1 {[%emt 0:05:30]} Rfd8 {[%emt 0:08:37]} 15. a3 {[%emt 0:09:29]} Nd5 {[%emt 0:00:33]} 16. Bb1 {[%emt 0:05:17]} Bf6 {[%emt 0:00:41]} 17. b4 {[%emt 0:02:54]} g6 {[%emt 0:03:07]} 18. Qc5 {[%emt 0:05:15]} Qd7 {[%emt 0:02:00]} 19. b5 {[%emt 0:10:55]} Na5 {[%emt 0:02:29]} 20. Nd2 {[%emt 0:09:52]} Rdc8 {[%emt 0:01:59]} 21. Ne4 {[%emt 0:00:50]} 0-1

[Event "EYTCC Open U18 2022"]
[Site "Thessaloniki"]
[Date "2022.07.14"]
[Round "3.17"]
[White "Yaniv, Yuval"]
[Black "Ratnesan, Ranesh"]
[Result "1-0"]
[ECO "B90"]
[WhiteElo "2305"]
[BlackElo "2269"]
[Annotator "ChessBase"]
[PlyCount "73"]
[EventDate "2022.07.12"]
[EventType "team-tourn"]
[EventCountry "GRE"]
[SourceTitle "playchess.com"]
[Source "ChessBase"]
[SourceQuality "1"]
[WhiteTeam "Israel"]
[BlackTeam "England"]
[WhiteTeamCountry "ISR"]
[BlackTeamCountry "ENG"]
[TimeControl "40/5400+30:1800+30"]

1. e4 {[%emt 0:00:26]} c5 {[%emt 0:00:09]} 2. Nf3 {[%emt 0:00:15]} d6 {[%emt 0:00:10]} 3. d4 {[%emt 0:00:18]} cxd4 {[%emt 0:00:08]} 4. Nxd4 {[%emt 0:00:09]} Nf6 {[%emt 0:00:06]} 5. Nc3 {[%emt 0:00:10]} a6 {[%emt 0:00:07]} 6. Bd3 {[%emt 0:00:24]} e5 {[%emt 0:01:37]} 7. Nde2 {[%emt 0:00:17]} Qc7 {[%emt 0:03:54]} 8. O-O {[%emt 0:00:56]} Be7 {[%emt 0:03:24]} 9. Kh1 {[%emt 0:04:08]} b5 {[%emt 0:04:10]} 10. a4 {[%emt 0:04:33]} b4 {[%emt 0:03:11]} 11. Nd5 {[%emt 0:00:14]} Nxd5 {[%emt 0:01:35]} 12. exd5 {[%emt 0:00:03]} O-O {[%emt 0:01:56]} 13. f4 {[%emt 0:04:32]} f5 {[%emt 0:04:28]} 14. c3 {[%emt 0:02:36]} bxc3 {[%emt 0:06:05]} 15. Nxc3 {[%emt 0:01:02]} Nd7 {[%emt 0:02:20]} 16. Be3 {[%emt 0:06:30]} Rb8 {[%emt 0:06:57]} 17. Rc1 {[%emt 0:11:42]} Qd8 {[%emt 0:17:36]} 18. Rc2 {[%emt 0:03:17]} exf4 {[%emt 0:02:16]} 19. Bxf4 {[%emt 0:01:30]} Ne5 {[%emt 0:02:30]} 20. Qe2 {[%emt 0:19:34]} Nxd3 {[%emt 0:04:44]} 21. Qxd3 {[%emt 0:00:05]} Bf6 {[%emt 0:00:09]} 22. Nd1 {[%emt 0:08:16]} Rb4 {[%emt 0:03:04]} 23. Rc4 {[%emt 0:02:16]} Rxc4 {[%emt 0:03:30]} 24. Qxc4 {[%emt 0:00:02]} Bb7 {[%emt 0:00:44]} 25. Bg3 {[%emt 0:03:46]} g6 {[%emt 0:01:13]} 26. Qb3 {[%emt 0:02:10]} Qa8 {[%emt 0:05:59]} 27. Ne3 {[%emt 0:00:31]} Bg5 {[%emt 0:00:49]} 28. Bxd6 {[%emt 0:00:35]} Rd8 {[%emt 0:00:21]} 29. Be7 {[%emt 0:06:05]} Bxe7 {[%emt 0:04:51]} 30. d6+ {[%emt 0:00:01]} Kf8 {[%emt 0:00:10]} 31. Nxf5 {[%emt 0:10:20]} Bxg2+ {[%emt 0:04:45]} 32. Kg1 {[%emt 0:00:01]} Bf6 {[%emt 0:01:13]} 33. Qe6 {[%emt 0:02:46]} Bd4+ {[%emt 0:02:44]} 34. Nxd4+ {[%emt 0:00:29]} Bxf1 {[%emt 0:00:07]} 35. Nc6 {[%emt 0:03:23]} Bh3 {[%emt 0:06:39]} 36. Qf6+ {[%emt 0:00:25]} Kg8 {[%emt 0:00:06]} 37. Ne7# {[%emt 0:00:06]} 1-0

[Event "EYTCC Open U18 2022"]
[Site "Thessaloniki"]
[Date "2022.07.14"]
[Round "3.18"]
[White "Stoica, Savas Marin"]
[Black "Guz, Ari"]
[Result "1-0"]
[ECO "E20"]
[WhiteElo "2092"]
[BlackElo "2331"]
[Annotator "ChessBase"]
[PlyCount "65"]
[EventDate "2022.07.12"]
[EventType "team-tourn"]
[EventCountry "GRE"]
[SourceTitle "playchess.com"]
[Source "ChessBase"]
[SourceQuality "1"]
[WhiteTeam "England"]
[BlackTeam "Israel"]
[WhiteTeamCountry "ENG"]
[BlackTeamCountry "ISR"]
[TimeControl "40/5400+30:1800+30"]

1. d4 {[%emt 0:00:22]} Nf6 {[%emt 0:00:48]} 2. c4 {[%emt 0:00:24]} e6 {[%emt 0:00:20]} 3. Nc3 {[%emt 0:00:34]} Bb4 {[%emt 0:03:32]} 4. f3 c5 {[%emt 0:01:20]} 5. d5 {[%emt 0:00:38]} b5 {[%emt 0:00:55]} 6. e4 {[%emt 0:00:05]} O-O {[%emt 0:00:23]} 7. Bd2 {[%emt 0:07:22]} bxc4 {[%emt 0:07:12]} 8. Bxc4 {[%emt 0:04:29]} Bb7 {[%emt 0:06:51]} 9. Nge2 {[%emt 0:10:14]} Bxc3 {[%emt 0:02:08]} 10. Bxc3 Nxd5 {[%emt 0:00:31]} 11. Bxd5 {[%emt 0:02:52]} exd5 {[%emt 0:00:14]} 12. exd5 {[%emt 0:00:15]} Qh4+ {[%emt 0:02:55]} 13. g3 {[%emt 0:01:27]} Qe7 {[%emt 0:03:46]} 14. O-O {[%emt 0:04:49]} d6 {[%emt 0:02:40]} 15. Nf4 {[%emt 0:01:32]} Nd7 {[%emt 0:01:39]} 16. Qd2 {[%emt 0:20:35]} Qg5 {[%emt 0:03:56]} 17. Rad1 {[%emt 0:00:40]} Rfe8 {[%emt 0:01:31]} 18. Kg2 {[%emt 0:02:28]} Nb6 {[%emt 0:01:22]} 19. h4 {[%emt 0:01:29]} Qe7 {[%emt 0:07:17]} 20. b3 {[%emt 0:05:52]} Qf8 {[%emt 0:03:53]} 21. a4 {[%emt 0:03:17]} f6 {[%emt 0:04:08]} 22. a5 {[%emt 0:03:58]} Nc8 {[%emt 0:01:27]} 23. Rfe1 {[%emt 0:04:11]} Rxe1 {[%emt 0:03:02]} 24. Rxe1 {[%emt 0:00:04]} Ne7 {[%emt 0:00:08]} 25. a6 {[%emt 0:06:52]} Bc8 {[%emt 0:01:47]} 26. h5 {[%emt 0:01:41]} Nf5 {[%emt 0:03:21]} 27. g4 {[%emt 0:02:06]} Nh6 {[%emt 0:01:00]} 28. Ne6 {[%emt 0:00:55]} Bxe6 {[%emt 0:02:21]} 29. dxe6 {[%emt 0:00:04]} Qe7 {[%emt 0:00:40]} 30. Qd5 Re8 {[%emt 0:02:35]} 31. Bd2 {[%emt 0:04:13]} Kf8 {[%emt 0:01:53]} 32. Bf4 {[%emt 0:01:01]} Rd8 33. Rd1 1-0

[Event "EYTCC Open U18 2022"]
[Site "Thessaloniki"]
[Date "2022.07.14"]
[Round "3.19"]
[White "Zemach, Nadav"]
[Black "Cont, Arya"]
[Result "0-1"]
[ECO "D02"]
[WhiteElo "2225"]
[BlackElo "1968"]
[Annotator "ChessBase"]
[PlyCount "48"]
[EventDate "2022.07.12"]
[EventType "team-tourn"]
[EventCountry "GRE"]
[SourceTitle "playchess.com"]
[Source "ChessBase"]
[SourceQuality "1"]
[WhiteTeam "Israel"]
[BlackTeam "England"]
[WhiteTeamCountry "ISR"]
[BlackTeamCountry "ENG"]
[TimeControl "40/5400+30:1800+30"]

1. d4 {[%emt 0:00:02]} d5 {[%emt 0:00:05]} 2. Nf3 {[%emt 0:00:04]} Nf6 {[%emt 0:00:07]} 3. g3 {[%emt 0:00:05]} e6 {[%emt 0:00:05]} 4. Bg2 {[%emt 0:00:09]} c5 {[%emt 0:00:49]} 5. c4 {[%emt 0:00:15]} Nc6 {[%emt 0:02:54]} 6. O-O {[%emt 0:02:20]} dxc4 {[%emt 0:03:35]} 7. dxc5 {[%emt 0:00:40]} Qxd1 {[%emt 0:00:07]} 8. Rxd1 {[%emt 0:00:02]} Bxc5 {[%emt 0:00:10]} 9. Nbd2 {[%emt 0:00:03]} c3 {[%emt 0:03:52]} 10. bxc3 {[%emt 0:00:04]} O-O {[%emt 0:06:25]} 11. Nb3 {[%emt 0:00:22]} Be7 {[%emt 0:04:07]} 12. c4 {[%emt 0:01:46]} e5 {[%emt 0:14:50]} 13. Bb2 {[%emt 0:04:28]} e4 {[%emt 0:06:03]} 14. Nfd2 {[%emt 0:03:17]} Bf5 {[%emt 0:10:11]} 15. Rac1 {[%emt 0:01:54]} Rfe8 {[%emt 0:02:37]} 16. c5 {[%emt 0:05:32]} e3 {[%emt 0:03:33]} 17. fxe3 {[%emt 0:00:35]} Ng4 {[%emt 0:02:31]} 18. e4 {[%emt 0:05:04]} Be6 {[%emt 0:03:56]} 19. Bf3 {[%emt 0:06:46]} Ne3 {[%emt 0:06:02]} 20. Re1 {[%emt 0:00:14]} Nb4 {[%emt 0:00:36]} 21. Kf2 {[%emt 0:03:53]} Bg5 {[%emt 0:01:31]} 22. a3 {[%emt 0:06:05]} Nbc2 {[%emt 0:03:52]} 23. Rg1 {[%emt 0:09:07]} Bh3 {[%emt 0:02:59]} 24. Nd4 {[%emt 0:04:41]} Nd1+ {[%emt 0:00:48]} 0-1

[Event "EYTCC Open U18 2022"]
[Site "Thessaloniki"]
[Date "2022.07.14"]
[Round "3.20"]
[White "Dias, Savin"]
[Black "Vagman, Roy"]
[Result "0-1"]
[ECO "B51"]
[WhiteElo "1894"]
[BlackElo "2180"]
[Annotator "ChessBase"]
[PlyCount "136"]
[EventDate "2022.07.12"]
[EventType "team-tourn"]
[EventCountry "GRE"]
[SourceTitle "playchess.com"]
[Source "ChessBase"]
[SourceQuality "1"]
[WhiteTeam "England"]
[BlackTeam "Israel"]
[WhiteTeamCountry "ENG"]
[BlackTeamCountry "ISR"]
[TimeControl "40/5400+30:1800+30"]

1. e4 {[%emt 0:00:02]} c5 {[%emt 0:00:12]} 2. Nf3 {[%emt 0:00:03]} d6 {[%emt 0:00:10]} 3. Bb5+ {[%emt 0:00:03]} Nd7 {[%emt 0:00:08]} 4. O-O {[%emt 0:00:05]} a6 {[%emt 0:00:16]} 5. Bd3 {[%emt 0:00:04]} Ngf6 {[%emt 0:00:22]} 6. Re1 {[%emt 0:00:13]} b5 {[%emt 0:00:41]} 7. c3 {[%emt 0:00:18]} Bb7 {[%emt 0:00:40]} 8. Bc2 {[%emt 0:00:50]} Qc7 {[%emt 0:01:07]} 9. d3 {[%emt 0:01:39]} g6 {[%emt 0:05:55]} 10. Bf4 {[%emt 0:02:01]} e5 {[%emt 0:03:05]} 11. Be3 {[%emt 0:00:37]} Bg7 {[%emt 0:01:43]} 12. Nbd2 {[%emt 0:01:19]} O-O {[%emt 0:01:20]} 13. d4 {[%emt 0:04:00]} exd4 {[%emt 0:08:58]} 14. cxd4 {[%emt 0:00:19]} Rfe8 {[%emt 0:12:28]} 15. d5 {[%emt 0:07:38]} Ng4 {[%emt 0:02:12]} 16. Rb1 {[%emt 0:02:08]} Nxe3 17. Rxe3 {[%emt 0:00:28]} Bh6 {[%emt 0:07:15]} 18. Re2 {[%emt 0:03:39]} Qb6 {[%emt 0:03:36]} 19. Nf1 {[%emt 0:07:45]} Re7 {[%emt 0:03:23]} 20. g4 {[%emt 0:05:16]} Bf4 {[%emt 0:06:54]} 21. Ne3 {[%emt 0:05:26]} Rae8 {[%emt 0:07:42]} 22. Ng2 {[%emt 0:02:51]} Bh6 {[%emt 0:01:13]} 23. g5 {[%emt 0:01:51]} Bg7 {[%emt 0:00:08]} 24. Re1 {[%emt 0:04:24]} c4 {[%emt 0:02:53]} 25. Nd2 {[%emt 0:12:38]} Ne5 {[%emt 0:03:00]} 26. Ne3 {[%emt 0:02:35]} Qd4 {[%emt 0:02:14]} 27. Kg2 {[%emt 0:03:00]} h5 {[%emt 0:03:19]} 28. f4 {[%emt 0:09:14]} Nd3 {[%emt 0:07:26]} 29. Bxd3 {[%emt 0:00:17]} Qxd3 {[%emt 0:00:31]} 30. Qe2 {[%emt 0:05:13]} Qxe2+ {[%emt 0:01:56]} 31. Rxe2 {[%emt 0:00:08]} c3 {[%emt 0:00:26]} 32. bxc3 {[%emt 0:03:46]} Bxc3 {[%emt 0:00:08]} 33. e5 {[%emt 0:01:19]} dxe5 {[%emt 0:03:54]} 34. f5 {[%emt 0:00:57]} Rd8 {[%emt 0:04:54]} 35. fxg6 {[%emt 0:00:56]} fxg6 {[%emt 0:00:19]} 36. Ne4 {[%emt 0:00:43]} Bd4 {[%emt 0:00:01]} 37. Nf6+ {[%emt 0:00:34]} Kh8 {[%emt 0:00:25]} 38. Rd1 {[%emt 0:00:36]} Rc7 {[%emt 0:01:04]} 39. Kf1 {[%emt 0:02:45]} Rc3 {[%emt 0:01:52]} 40. Nc2 {[%emt 0:00:00]} Bxd5 {[%emt 0:00:00]} 41. Nxd5 {[%emt 0:05:56]} Rxd5 {[%emt 0:03:00]} 42. Nxd4 {[%emt 0:00:55]} Rxd4 {[%emt 0:00:52]} 43. Rde1 {[%emt 0:01:18]} Rf4+ {[%emt 0:01:28]} 44. Rf2 {[%emt 0:00:40]} Rc2 {[%emt 0:04:12]} 45. Rxf4 {[%emt 0:01:30]} exf4 {[%emt 0:00:06]} 46. Re6 {[%emt 0:00:03]} Rxa2 {[%emt 0:00:24]} 47. Rxg6 {[%emt 0:00:06]} b4 {[%emt 0:01:43]} 48. Rb6 {[%emt 0:00:44]} a5 {[%emt 0:00:43]} 49. h4 {[%emt 0:00:08]} Rb2 {[%emt 0:01:29]} 50. Ra6 {[%emt 0:03:22]} b3 {[%emt 0:00:57]} 51. Ra8+ {[%emt 0:00:05]} Kg7 {[%emt 0:00:42]} 52. Ra7+ {[%emt 0:00:05]} Kf8 {[%emt 0:01:06]} 53. Ra8+ {[%emt 0:00:15]} Ke7 {[%emt 0:02:30]} 54. Ra7+ {[%emt 0:00:12]} Kf8 {[%emt 0:13:29]} 55. Ra8+ {[%emt 0:00:16]} Kf7 {[%emt 0:00:05]} 56. Ra7+ {[%emt 0:02:31]} Kg6 {[%emt 0:00:03]} 57. Ra6+ {[%emt 0:00:04]} Kf5 {[%emt 0:02:59]} 58. Rxa5+ {[%emt 0:02:17]} Ke4 {[%emt 0:00:20]} 59. g6 {[%emt 0:00:35]} Kf3 {[%emt 0:00:44]} 60. Ke1 {[%emt 0:00:42]} Rg2 {[%emt 0:03:52]} 61. Rb5 {[%emt 0:00:28]} Rg1+ {[%emt 0:00:37]} 62. Kd2 {[%emt 0:00:05]} Rxg6 {[%emt 0:01:20]} 63. Rxb3+ {[%emt 0:00:35]} Kg2 {[%emt 0:00:48]} 64. Ke1 {[%emt 0:01:09]} Re6+ {[%emt 0:00:16]} 65. Kd2 {[%emt 0:00:04]} f3 {[%emt 0:00:47]} 66. Rb5 {[%emt 0:00:05]} f2 {[%emt 0:01:23]} 67. Rg5+ {[%emt 0:00:04]} Kf3 {[%emt 0:01:00]} 68. Rf5+ {[%emt 0:00:08]} Kg3 {[%emt 0:00:08]} 0-1

[Event "EYTCC Open U18 2022"]
[Site "Thessaloniki"]
[Date "2022.07.14"]
[Round "3.21"]
[White "Subelj, Jan"]
[Black "Morgunov, Marc"]
[Result "1/2-1/2"]
[ECO "B54"]
[WhiteElo "2498"]
[BlackElo "2376"]
[Annotator "ChessBase"]
[PlyCount "70"]
[EventDate "2022.07.12"]
[EventType "team-tourn"]
[EventCountry "GRE"]
[SourceTitle "playchess.com"]
[Source "ChessBase"]
[SourceQuality "1"]
[WhiteTeam "Slovenia"]
[BlackTeam "Austria"]
[WhiteTeamCountry "SLO"]
[BlackTeamCountry "AUT"]
[TimeControl "40/5400+30:1800+30"]

1. e4 {[%emt 0:00:17]} c5 {[%emt 0:00:12]} 2. Nf3 {[%emt 0:00:17]} d6 {[%emt 0:00:09]} 3. d4 {[%emt 0:00:15]} cxd4 {[%emt 0:00:05]} 4. Nxd4 {[%emt 0:00:11]} Nf6 {[%emt 0:00:05]} 5. Bb5+ {[%emt 0:00:19]} Nbd7 {[%emt 0:04:31]} 6. O-O {[%emt 0:00:24]} e5 {[%emt 0:10:49]} 7. Nf5 {[%emt 0:00:18]} a6 {[%emt 0:00:15]} 8. Bd3 {[%emt 0:00:21]} Nc5 {[%emt 0:13:41]} 9. Bg5 {[%emt 0:00:33]} g6 {[%emt 0:07:33]} 10. Bxf6 {[%emt 0:08:34]} Qxf6 {[%emt 0:00:11]} 11. Ne3 {[%emt 0:00:05]} Qd8 {[%emt 0:07:18]} 12. Nc3 {[%emt 0:10:55]} Bh6 {[%emt 0:06:04]} 13. Ned5 {[%emt 0:01:51]} O-O {[%emt 0:01:44]} 14. a4 {[%emt 0:00:27]} Be6 {[%emt 0:03:24]} 15. a5 {[%emt 0:00:35]} Rc8 {[%emt 0:01:52]} 16. Qe2 {[%emt 0:17:05]} Nxd3 {[%emt 0:05:05]} 17. Qxd3 {[%emt 0:00:40]} f5 {[%emt 0:00:50]} 18. Ra4 {[%emt 0:01:47]} Rf7 {[%emt 0:03:05]} 19. Rd1 {[%emt 0:03:38]} f4 {[%emt 0:06:59]} 20. f3 {[%emt 0:06:22]} g5 {[%emt 0:02:34]} 21. h3 {[%emt 0:07:12]} Bf8 {[%emt 0:01:25]} 22. Kf2 {[%emt 0:01:23]} h5 {[%emt 0:04:05]} 23. Ke2 {[%emt 0:00:24]} g4 {[%emt 0:01:08]} 24. hxg4 {[%emt 0:00:59]} hxg4 {[%emt 0:00:04]} 25. Kd2 {[%emt 0:01:36]} Rh7 {[%emt 0:04:35]} 26. Kc1 {[%emt 0:00:54]} Rh2 {[%emt 0:00:58]} 27. Rg1 {[%emt 0:03:45]} Qh4 {[%emt 0:02:13]} 28. Rb4 {[%emt 0:01:17]} Rxg2 {[%emt 0:02:33]} 29. Rxg2 {[%emt 0:00:05]} Qh1+ {[%emt 0:00:03]} 30. Qd1 {[%emt 0:00:14]} Qxg2 {[%emt 0:00:04]} 31. Rxb7 {[%emt 0:00:15]} Kh8 {[%emt 0:02:35]} 32. Nf6 {[%emt 0:09:19]} Bg7 {[%emt 0:00:53]} 33. Nh5 {[%emt 0:01:00]} Bf8 {[%emt 0:01:48]} 34. Nf6 {[%emt 0:01:05]} Bg7 {[%emt 0:00:07]} 35. Nh5 {[%emt 0:02:12]} Bf8 {[%emt 0:01:25]} 1/2-1/2